Cogmind - Beta 16.1 @@@ ROGUE MODE // 2026.04.02 @ 14:01:22 Player: the Result: Destroyed by G-67 Veteran with Field Laser Performance ------------- Evolutions (6) 3000 Regions Visited (10) 2000 Robots Destroyed (170) 850 Value Destroyed (6858) 6858 Prototype IDs (36) 720 Alien Tech Used (1) 200 Bonus (3550) 3550 TOTAL SCORE: 17178 Bonus ------- High Alert Combat Kills 383 Follower Combat Kills 692 Registered with UFD 300 Met Optimus in HQ 500 MAIN.C Attacked Warlord 500 Warlord Defense Kills 1930 Friendly Fire -755 Cogmind --------- Core Integrity 0/1150 Matter 206/300 Energy 63/100 System Corruption 5% Temperature Hot (211) Movement Core (1350) Ox26 Location -4/Factory Parts ------- > --- POWER (2+1) ------ (None) > --- PROPULSION (5+1) - (None) > --- UTILITY (8+1) ---- Huge Storage Unit (+) Advanced Signal Interpreter Experimental Targeting Computer > --- WEAPON (4) ------- (None) > --- INVENTORY (25) --- High-capacity Storage Unit Improved Matter Compressor (300) Deep Structural Scanner Advanced Sensor Array Experimental Terrain Scan Processor Surveybot 17 Chip Experimental Core Analyzer Advanced Recoil Stabilizer Weapon Cycler Experimental Cloaking Device Layered Medium Armor Plating Graphene Brace Thermal Barrier Advanced Hacking Suite Long-range Tractor Beam CPS Tube (2) CPS Tube (2) Vortex Lance (40) DRS Beacon (Ready) Peak State ------------ > --- POWER ------------ Neutrino Core Antimatter Reactor > --- PROPULSION ------- Wheel Armored Huge Wheel Armored Huge Wheel > --- UTILITY ---------- Huge Storage Unit Advanced Sensor Array Advanced Signal Interpreter Experimental Terrain Scan Processor Experimental Targeting Computer Enhanced Scrap Shield Advanced Hacking Suite Rainbow Chip > --- WEAPON ----------- Hypervelocity Coil Gun Hypervelocity Coil Gun Railgun Helical Railgun Compact Linear Accelerator > --- INVENTORY -------- Vortex Chain Reactor Advanced Cooling System High-capacity Storage Unit Improved Matter Compressor Surveybot 17 Chip Experimental Core Analyzer Advanced Recoil Stabilizer Weapon Cycler Experimental Cloaking Device Layered Medium Armor Plating Thermal Barrier Improved Force Field Long-range Tractor Beam Dimensional Node Initializer Vortex Rail Vortex Rail Advanced Plasma Cannon Advanced Plasma Cannon Advanced Plasma Cannon Advanced Plasma Cannon CPS Tube CPS Tube Vortex Lance DRS Beacon [Rating: 141] Favorites ----------- Power Neutrino Core Engine Light Ion Engine Power Core Neutrino Core Reactor Antimatter Reactor Propulsion Wheel Treads Light Treads Leg Enhanced Flexi-carbon Leg Wheel Wheel Utility Huge Storage Unit Device Cooling System Storage Huge Storage Unit Processor Improved Signal Interpreter Hackware Advanced Hacking Suite Protection Scrap Shield Weapon Hypervelocity Coil Gun Energy Gun Subdweller Laser Energy Cannon Advanced Plasma Cannon Ballistic Gun Hypervelocity Coil Gun Ballistic Cannon Compact Linear Accelerator Launcher Subdweller Shrapnel Launcher Special Weapon RU-N14's Throwing Claymores v3 Impact Weapon Flail Slashing Weapon Power Sword Piercing Weapon Plasma Lance Build | -11 -10 -10 -7 -7 -5 -5 -5 -5 -4 -4 ------- Run | Yrd Mat Sub Rec Scr Fac Upp Upp War Pro Fac Slots Evolved 12 | . . . . . 10 . . . . 2 Power 1 | . . . . . 1 . . . . . Propulsion 3 | . . . . . 3 . . . . . Utility 6 | . . . . . 4 . . . . 2 Weapon 2 | . . . . . 2 . . . . . Parts Attached 129 | 6 10 14 . 6 50 2 5 17 3 16 Power 15 | 1 . 1 . 1 5 . 1 3 1 2 Engine 4 | 1 . 1 . 1 1 . . . . . Core 7 | . . . . . 4 . 1 1 1 . Reactor 4 | . . . . . . . . 2 . 2 Propulsion 22 | 2 3 3 . 1 11 . . . . 2 Treads 6 | 2 1 3 . . . . . . . . Leg 1 | . . . . . 1 . . . . . Wheel 15 | . 2 . . 1 10 . . . . 2 Hover . | . . . . . . . . . . . Flight . | . . . . . . . . . . . Utility 48 | 1 4 5 . 2 17 1 3 9 2 4 Device 22 | 1 1 2 . 2 5 1 2 6 1 1 Storage 5 | . 3 1 . . 1 . . . . . Processor 8 | . . . . . 2 . . 3 1 2 Hackware 5 | . . . . . 5 . . . . . Protection 8 | . . 2 . . 4 . 1 . . 1 Artifact . | . . . . . . . . . . . Weapon 44 | 2 3 5 . 2 17 1 1 5 . 8 Energy Gun 5 | . . 1 . . 1 . . 1 . 2 Energy Cannon 7 | . . 1 . . 2 . . . . 4 Ballistic Gun 21 | 2 2 1 . 2 10 1 1 1 . 1 Ballistic Cannon 2 | . . . . . 1 . . 1 . . Launcher 3 | . 1 1 . . 1 . . . . . Special Weapon 1 | . . . . . . . . 1 . . Impact Weapon 1 | . . 1 . . . . . . . . Slashing Weapon 2 | . . . . . 2 . . . . . Piercing Weapon 2 | . . . . . . . . 1 . 1 Special Melee Weapon . | . . . . . . . . . . . Unidentified Prototypes 18 | . . . . . 4 . . 10 . 4 Parts Lost 45 | . 1 3 . . 17 . . 1 . 23 Power 9 | . . . . . 4 . . 1 . 4 Propulsion 9 | . . 1 . . 4 . . . . 4 Utility 12 | . 1 2 . . 3 . . . . 6 Weapon 15 | . . . . . 6 . . . . 9 Highest Loss Streak 21 | . 1 1 . . 4 . . 1 . 21 To Critical Strikes . | . . . . . . . . . . . Average Backups 17 | . 11 14 23 15 22 23 22 21 22 21 Power . | . . . 1 . . . . . 1 . Propulsion . | . 2 1 . . . . . . . . Utility 9 | . 3 4 9 8 16 18 18 13 14 13 Weapon 6 | . 5 9 12 6 2 3 2 4 4 4 Tool/Special . | . . . . . . . . . . . Unused Backups 55 | . 8 8 1 10 4 3 . 9 . 12 Power 2 | . . . . 1 1 . . . . . Propulsion . | . . . . . . . . . . . Utility 27 | . 4 . . 4 3 3 . 5 . 8 Weapon 24 | . 4 8 1 5 . . . 4 . 2 Tool/Special 2 | . . . . . . . . . . 2 Average Slot Usage (%) 86 | . 90 92 100 81 80 81 82 87 88 75 Engine 8 | . 14 14 14 14 1 . . . . . Core 2 | . . . . . 7 5 5 8 4 3 Treads 5 | . 16 13 . . . . . . . . Wheel 16 | . 11 14 28 22 13 17 17 17 17 12 Device 9 | . 6 7 14 12 6 10 9 11 10 10 Storage 7 | . 11 7 14 9 5 5 5 5 5 4 Processor 3 | . . . . . 9 5 5 8 11 13 Hackware 2 | . . . . . 7 11 11 7 5 2 Protection 2 | . . 6 . . 1 . 1 . . 3 Energy Gun 1 | . . 3 . . . . . . . . Energy Cannon 3 | . . 3 14 4 . . . . . 11 Ballistic Gun 14 | . 27 15 3 11 15 17 21 19 17 4 Launcher 1 | . . 4 10 . . . . . . . Impact Weapon 1 | . . 1 . 4 . . . . . . Peak Build Rating 141 | 6 13 19 19 28 89 83 91 108 111 141 Average Rating 43 | 4 7 13 19 19 69 82 85 95 105 126 On Entrance 50 | . 6 13 19 19 28 76 83 90 107 111 Avg Prop Armor Cover (%) 4 | 24 . 11 . . 3 . . . . 3 Naked Turns . | . . . . . . . . . . . Heaviest Build 182 | 8 90 102 102 98 132 117 141 139 154 182 Greatest Support 68 | 40 40 40 20 28 68 66 66 66 66 66 Greatest Overweight (x) 14 | 1 4 8 5 4 11 1 2 2 2 14 Average Overweight (x) 2 | . 1 2 4 2 2 1 1 1 2 3 Largest Inventory Capacity 25 | 5 25 25 25 25 25 25 25 25 25 25 Average Capacity 20 | 5 14 15 25 19 25 25 25 25 25 25 Most Carried 25 | 3 25 25 25 25 25 25 25 25 25 25 Average Carried 18 | . 11 15 25 17 23 24 24 23 25 23 Final Capacity 25 | 5 25 25 25 25 25 25 25 25 25 25 Final Carried 25 | 3 25 25 25 25 24 25 25 25 25 19 Class Distribution -------------------- 39% | Mutant 16% | Scavenger-Mutant 9% | Scavenger-Skirmisher 6% | Subdweller-Mutant 5% | Hacker-Assassin 5% | Hacker-Skirmisher 3% | Skirmisher 3% | Hacker-Mutant Dominant Class ---------------- Mutant | -10/Materials Mutant | -10/Subcaves Mutant | -7/Recycling Mutant | -7/Scraptown Skirmisher | -5/Factory Hacker-Assassin | -5/Upper Caves Hacker-Skirmisher | -5/Upper Caves Hacker-Assassin | -5/Warlord Scavenger-Skirmisher | -4/Proximity Caves Scavenger-Skirmisher | -4/Factory Resources | -11 -10 -10 -7 -7 -5 -5 -5 -5 -4 -4 ----------- Run | Yrd Mat Sub Rec Scr Fac Upp Upp War Pro Fac Matter Collected 8570 | 185 592 1044 . 213 2600 280 847 1678 542 589 Remotely 2404 | . . . . . 632 . 621 595 300 256 Salvage Created 8339 | 145 619 854 82 . 2720 35 590 1303 383 1608 Parts 422 | 19 43 58 2 . 132 3 25 66 11 63 Haulers Intercepted 4 | . 2 . . . 1 . . . . 1 Recyclers Shooed 5 | . 2 . . . 3 . . . . . Parts Field Recycled . | . . . . . . . . . . . Retrieved Matter . | . . . . . . . . . . . Parts Self-Destructed 53 | . . 18 . . . 2 25 . 8 . Prevented 2 | . . . . . . 2 . . . . Parts Restored . | . . . . . . . . . . . Kills | -11 -10 -10 -7 -7 -5 -5 -5 -5 -4 -4 ------- Run | Yrd Mat Sub Rec Scr Fac Upp Upp War Pro Fac Combat Hostiles Destroyed 121 | . 9 24 . . 30 5 8 15 5 25 Melee 2 | . . . . . 2 . . . . . Guns 68 | . 7 17 . . 19 . 8 13 2 2 Cannons 21 | . . . . . 4 . . . 3 14 AOE 22 | . 2 7 . . 3 5 . 2 . 3 Classes Destroyed 25 | 2 7 2 . . 5 . . 4 3 2 Worker 8 | . 3 . . . 5 . . . . . Builder 7 | . . . . . 5 . . . . 2 Tunneler 7 | 5 1 . . . 1 . . . . . Hauler 4 | . 2 . . . 1 . . . . 1 Recycler 6 | 1 1 . 1 . 3 . . . . . Mechanic 2 | . 1 . . . 1 . . . . . Operator 2 | . 1 . . . . . . . . 1 Drone 2 | . . . . . . . . . 2 . Turret 2 | . . 2 . . . . . . . . Watcher 5 | . 3 . . . 1 . . . . 1 Swarmer 17 | . 3 9 . . . 5 . . . . Saboteur 1 | . . . . . . . . . . 1 Grunt 42 | . 6 . . . 11 . 7 10 . 8 Brawler 3 | . . . . . 3 . . . . . Duelist 1 | . . . . . . . . . . 1 Protector 2 | . . . . . . . . 1 . 1 Sentry 7 | . . . . . 4 . . . 1 2 Specialist 1 | . . . . . . . . . 1 . Hunter 13 | . . . . . 5 . 1 1 2 4 Programmer 15 | . . . . . 7 . . 1 . 7 Behemoth 1 | . . . . . . . . . . 1 Striker 2 | . . . . . . . . 2 . . Subdweller 15 | . . 15 . . . . . . . . Samaritan 1 | . . . . . . . . . 1 . Thug 1 | . . . . . . . . 1 . . Savage 1 | . . . . . . . . 1 . . Butcher 1 | . . . . . . . . 1 . . Mutant 1 | . . . . . . . . 1 . . Commander 1 | . . . . . . . . 1 . . Best Kill Streak 9 | 5 3 4 1 . 6 5 3 3 2 9 Combat Bots Only 8 | . 3 4 . . 4 5 3 3 2 8 Max Kills in Single Turn 4 | 2 2 4 1 . 2 2 1 2 1 3 Gunslinging . | . . . . . . . . . . . Exploded 4 | . 2 4 . . 1 2 . 1 . 3 Melee 1 | . . . . . 1 . . . . . Uniques/NPCs Destroyed . | . . . . . . . . . . . Combat | -11 -10 -10 -7 -7 -5 -5 -5 -5 -4 -4 -------- Run | Yrd Mat Sub Rec Scr Fac Upp Upp War Pro Fac Hostile Shots Fired 733 | . 31 104 . . 223 8 21 18 54 274 Missed 234 | . 10 32 . . 59 4 7 7 26 89 Hits 499 | . 21 72 . . 164 4 14 11 28 185 Melee 8 | . . . . . 3 . . 1 . 4 Projectile 491 | . 21 72 . . 161 4 14 10 28 181 AOE 2 | . . . . . 2 . . . . . Critical Strikes 18 | . . 2 . . 3 . 2 . 1 10 Part Disruptions 1 | . . . . . . . . 1 . . Damage Taken 10141 | . 259 991 . . 3602 64 252 571 293 4109 Core 1715 | . 39 157 . . 288 . 18 49 . 1164 Absorbed by Shields 445 | . . . . . . . . 66 209 170 Regen/Repaired (Parts) 143 | . . . . . . . . 143 . . Core Remaining (%) 61 | 100 . . . 21 . . . . 64 . Volleys Fired 497 | 11 63 94 8 . 143 4 21 48 28 77 Largest 5 | 2 2 2 1 . 4 1 4 4 4 5 Hottest 450 | 40 46 120 80 . 144 40 140 140 166 450 Shots Fired 1282 | 22 124 173 8 . 410 4 81 180 82 198 Gun 1018 | 22 123 164 . . 374 1 81 178 54 21 Cannon 249 | . . 2 8 . 34 . . . 28 177 Launcher 13 | . 1 7 . . 2 3 . . . . Special 2 | . . . . . . . . 2 . . Kinetic 1041 | 22 123 155 . . 366 4 81 178 82 30 Thermal 185 | . . 15 8 . . . . . . 162 Explosive 6 | . 1 3 . . . . . 2 . . Electromagnetic 44 | . . . . . 44 . . . . . Entropic 6 | . . . . . . . . . . 6 Robot Hit Streak 26 | 5 12 19 2 . 26 4 4 6 9 13 Robot Miss Streak 6 | 2 5 4 . . 5 . 6 6 4 3 Penetration Max 3 | . . . . . 2 . 1 3 1 1 Secondary Targets 7 | . . 2 . . 3 . 1 1 . . Max Gunslinging Chain 1 | . . 1 . . 1 . 1 1 . . Shots Hit Robots 727 | 13 63 116 1 . 269 1 35 86 42 101 Core Hits 334 | 6 36 50 1 . 104 5 15 53 18 46 Critical Kills 41 | . 1 . . . 6 . 8 17 2 7 Critical Parts Destroyed 48 | 1 1 . . . 6 . 10 24 5 1 Critical Strikes 94 | 1 2 2 . . 13 . 18 42 7 9 Meltdown 5 | . . . . . . . . . . 5 Destroy 87 | 1 2 2 . . 13 . 18 41 7 3 Blast 1 | . . . . . . . . . . 1 Sever 1 | . . . . . . . . 1 . . Melee Attacks 63 | . . 8 . . 43 2 2 1 . 7 Impact 8 | . . 8 . . . . . . . . Slashing 47 | . . . . . 43 2 2 . . . Piercing 7 | . . . . . . . . . . 7 Entropic 1 | . . . . . . . . 1 . . Sneak Attacks 3 | . . . . . 3 . . . . . Combat Hostiles . | . . . . . . . . . . . Follow-up Attacks . | . . . . . . . . . . . Damage Inflicted 15770 | 181 947 2367 27 . 5392 354 277 1420 813 3992 Guns 9025 | 181 888 1822 . . 4032 . 277 924 374 527 Cannons 4434 | . . . 27 . 621 . . . 439 3347 Explosions 1805 | . 48 545 . . 353 354 . 392 . 113 Melee 386 | . . . . . 386 . . . . . Ramming 16 | . 11 . . . . . . . . 5 Kinetic 9962 | 181 888 1973 . . 4092 354 277 924 813 460 Thermal 3310 | . . 83 27 . . . . . . 3200 Explosive 813 | . 48 311 . . 62 . . 392 . . Electromagnetic 930 | . . . . . 852 . . . . 78 Impact . | . . . . . . . . . . . Slashing 490 | . . . . . 386 . . 104 . . Piercing . | . . . . . . . . . . . Entropic 249 | . . . . . . . . . . 249 Highest Corruption 13 | . . . . . 11 13 13 13 . 5 Average Corruption 7 | . . . . . 6 13 13 13 . 2 Corruption Purged . | . . . . . . . . . . . Corruption Blocked . | . . . . . . . . . . . Effects 122 | . . . . . 46 17 34 2 . 23 Message Errors 22 | . . . . . 8 4 5 . . 5 Matter Fused 30 | . . . . . 15 6 7 . . 2 Heat Flow Errors 21 | . . . . . 4 5 8 1 . 3 Energy Discharges 17 | . . . . . 4 1 5 . . 7 Parts Rejected 1 | . . . . . 1 . . . . . Parts Fused 1 | . . . . . 1 . . . . . Data Loss (minor) 11 | . . . . . 5 1 3 . . 2 Data Loss (major) 3 | . . . . . 1 . 2 . . . Misfires 6 | . . . . . 3 . . 1 . 2 Alerts 3 | . . . . . 2 . . . . 1 Misdirections 1 | . . . . . . . 1 . . . Weapon Failures 6 | . . . . . 2 . 3 . . 1 Overload Shots . | . . . . . . . . . . . Overflow Damage 275 | . . 59 . . 135 33 . 5 12 31 Projectiles 60 | . . . . . 12 . . 5 12 31 Explosions 125 | . . 59 . . 33 33 . . . . Melee 90 | . . . . . 90 . . . . . Knockbacks 4 | . . . . . . . . . 2 2 Impact . | . . . . . . . . . . . Kinetic 3 | . . . . . . . . . 2 1 Secondary 1 | . . . . . . . . . . 1 Self-Inflicted Damage 156 | . . . . . 129 . . . . 27 Shots 3 | . . . . . 2 . . . . 1 Rammed 4 | 1 2 . . . . . . . . 1 Targets Rammed 5 | 1 3 . . . . . . . . 1 Kicked . | . . . . . . . . . . . Crushed 1 | . 1 . . . . . . . . . Highest Temperature 428 | . 6 . 36 . 381 264 302 239 428 424 Average Temperature 86 | . 3 . 15 . 66 115 116 46 68 130 Received Heat Transfer 1794 | . 150 210 . . 489 . 144 106 24 671 Effects 8 | . . . . . 1 . 1 . 2 4 Shutdowns 3 | . . . . . . . . . 2 1 Energy Bleed 3 | . . . . . 1 . 1 . . 1 Interference 1 | . . . . . . . . . . 1 Matter Decay 1 | . . . . . . . . . . 1 Siege Activations . | . . . . . . . . . . . Martial Activations . | . . . . . . . . . . . Shielding Activations . | . . . . . . . . . . . Robots Disrupted 1 | . . . . . 1 . . . . . Combat Hostiles 1 | . . . . . 1 . . . . . Robots Corrupted 2 | . . . . . 2 . . . . . Combat Hostiles 2 | . . . . . 2 . . . . . Parts Fried 5 | . . . . . 5 . . . . . Impact Corruptions . | . . . . . . . . . . . Robots Melted 6 | . . . . . . . . . . 6 Combat Hostiles 6 | . . . . . . . . . . 6 Parts Melted 25 | . . . . . . . . . . 25 Heat Transferred 4598 | . . 100 37 . . . . . . 4461 Parts Sabotaged . | . . . . . . . . . . . Parts Stolen . | . . . . . . . . . . . Parts Stripped . | . . . . . . . . . . . Power Chain Reactions . | . . . . . . . . . . . Alert | -11 -10 -10 -7 -7 -5 -5 -5 -5 -4 -4 ------- Run | Yrd Mat Sub Rec Scr Fac Upp Upp War Pro Fac Maximum Alert Level 2 | . . . . . 2 . . . . 2 Low Security (%) 63 | 100 100 . 100 . 44 . . . . 35 Level 1 22 | . . . . . 39 . . . . 29 Level 2 14 | . . . . . 15 . . . . 34 Level 3 . | . . . . . . . . . . . Level 4 . | . . . . . . . . . . . Level 5 . | . . . . . . . . . . . High Security . | . . . . . . . . . . . Max Security . | . . . . . . . . . . . Peak Influence 691 | 20 86 . 129 . 647 . . . . 691 Initial 300 | . . . 129 . . . . . . 300 Average 184 | 4 16 . 21 . 247 . . . . 345 Influence Increases 4930 | 30 353 390 22 . 1527 110 235 710 80 1473 Destroy 0b10 Robot/C 2520 | . 180 220 . . 800 100 160 520 60 480 Destroy 0b10 Robot/NC 230 | 30 60 . 5 . 95 . . 5 10 25 Destroy Leader 410 | . 50 20 . . 176 10 30 . 10 114 Allied During Kill 190 | . . . . . 35 . . 155 . . Successful Hack 117 | . 29 . 12 . 52 . . . . 24 Disable Machine 225 | . . . . . 120 . . . . 105 Anti-Garrison Action 150 | . . . . . . . . . . 150 Destroy Structure 383 | . 4 . 5 . 114 . . . . 260 Advance Influence 300 | . . . . . . . . . . 300 Partial Spotted 15 | . . . . . 15 . . . . . Lose Combat Pursuer 390 | . 30 150 . . 120 . 45 30 . 15 Influence Decreases 4343 | 30 349 124 292 . 1186 389 258 283 546 886 Entered New Map 789 | . . 3 141 . . 127 13 39 466 . Time Decay 2534 | 30 349 101 151 . 586 262 245 174 80 556 Search Patrol Dispatched 100 | . . . . . . . . . . 100 Lost Part 430 | . . 20 . . 170 . . 10 . 230 Lost Ally 190 | . . . . . 130 . . 60 . . Purge Threat 300 | . . . . . 300 . . . . . Squads Dispatched 38 | . 1 . . . 21 . . . . 16 Investigation 12 | . . . . . 8 . . . . 4 Extermination 10 | . . . . . 6 . . . . 4 Reinforcement 9 | . 1 . . . 4 . . . . 4 Assault 4 | . . . . . . . . . . 4 Garrison 3 | . . . . . 3 . . . . . Intercept . | . . . . . . . . . . . Searches Triggered 1 | . . . . . . . . . . 1 Construction Impeded 2 | . . . . . . . . . . 2 Haulers Reinforced 4 | . . . . . 3 . . . . 1 Active Scanning Responses . | . . . . . . . . . . . Cargo Convoy Interrupts . | . . . . . . . . . . . Stealth | -11 -10 -10 -7 -7 -5 -5 -5 -5 -4 -4 --------- Run | Yrd Mat Sub Rec Scr Fac Upp Upp War Pro Fac Distress Signals 8 | . 4 . . . 1 . . 1 . 2 Communications Jammed . | . . . . . . . . . . . Distress Signals . | . . . . . . . . . . . Times Spotted 255 | . 22 28 . . 56 5 12 74 6 52 Peak Tracking Total 16 | . 3 6 . . 5 5 3 16 3 16 Tactical Retreats 16 | . 2 3 . . 7 . 1 2 . 1 Traps | -11 -10 -10 -7 -7 -5 -5 -5 -5 -4 -4 ------- Run | Yrd Mat Sub Rec Scr Fac Upp Upp War Pro Fac Traps Triggered 4 | . . . . . 2 . . . . 2 Indirectly . | . . . . . . . . . . . Trap Hack Attempts . | . . . . . . . . . . . Triggered . | . . . . . . . . . . . Disarmed . | . . . . . . . . . . . Reprogrammed . | . . . . . . . . . . . Reused . | . . . . . . . . . . . Traps Extracted . | . . . . . . . . . . . Installed . | . . . . . . . . . . . Triggered . | . . . . . . . . . . . Machines | -11 -10 -10 -7 -7 -5 -5 -5 -5 -4 -4 ---------- Run | Yrd Mat Sub Rec Scr Fac Upp Upp War Pro Fac Machines Disabled 24 | . . 5 . . 8 1 1 1 . 8 Max in Single Turn 3 | . . 3 . . 2 1 1 1 . 2 Garrison Access 1 | . . . . . . . . . . 1 Machines Repaired . | . . . . . . . . . . . Machines Dismantled . | . . . . . . . . . . . Machines Sabotaged . | . . . . . . . . . . . Overloaded Fab Kills . | . . . . . . . . . . . Hacking | -11 -10 -10 -7 -7 -5 -5 -5 -5 -4 -4 --------- Run | Yrd Mat Sub Rec Scr Fac Upp Upp War Pro Fac Machines Accessed 54 | . 7 2 6 3 19 1 . 4 . 12 Terminals 24 | . 6 . 5 . 8 . . . . 5 Fabricators 4 | . . . . . 4 . . . . . Repair Stations 1 | . . . . . . . . . . 1 Recycling Units 10 | . 1 . . . 5 . . . . 4 Scanalyzers 2 | . . . . . 1 . . . . 1 Garrison Access 2 | . . . . . 1 . . . . 1 Total Hacks 156 | . 17 5 20 26 58 1 . 9 . 20 Successful 103 | . 6 5 13 26 33 1 . 9 . 10 Failed 52 | . 11 . 7 . 25 . . . . 9 Catastrophic 7 | . 1 . 2 . 1 . . . . 3 Database Lockouts 1 | . . . . . . . . . . 1 Manual 61 | . 7 . 10 . 31 . . . . 13 Terminals 69 | . 15 . 15 . 30 . . . . 9 Fabricators 13 | . . . . . 13 . . . . . Repair Stations 2 | . . . . . . . . . . 2 Recycling Units 18 | . 2 . . . 10 . . . . 6 Scanalyzers 5 | . . . . . 3 . . . . 2 Garrison Access 3 | . . . . . 2 . . . . 1 Terminal Hacks 64 | . 4 5 6 26 11 1 . 9 . 2 Record 38 | . . 4 5 21 . . . 8 . . Part Schematic 1 | . . . . . 1 . . . . . Robot Analysis 6 | . 1 . . 5 . . . . . . Prototype ID Bank 2 | . 1 . . . 1 . . . . . Open Door 2 | . . . . . . 1 . 1 . . Branch Access Points 2 | . 1 . . . 1 . . . . . Terminal Index 2 | . . . 1 . 1 . . . . . Recycling Unit Index 1 | . . . . . . . . . . 1 Alert Level 1 | . . . . . 1 . . . . . Unreport Threat 2 | . . . . . 2 . . . . . Locate Traps 3 | . 1 . . . 2 . . . . . Recall Extermination 1 | . . . . . 1 . . . . . Registered Components 2 | . . . . . 1 . . . . 1 Proto ID Catalog 1 | . . 1 . . . . . . . . Fabricator Hacks 9 | . . . . . 9 . . . . . Network Status 1 | . . . . . 1 . . . . . Load Schematic 5 | . . . . . 5 . . . . . Build 3 | . . . . . 3 . . . . . Repair Station Hacks 1 | . . . . . . . . . . 1 Scan Component 1 | . . . . . . . . . . 1 Recycling Unit Hacks . | . . . . . . . . . . . Scanalyzer 4 | . . . . . 3 . . . . 1 Insert Component 2 | . . . . . 2 . . . . . Analyze 1 | . . . . . 1 . . . . . Retrieve Study 1 | . . . . . . . . . . 1 Garrison Access Hacks . | . . . . . . . . . . . Unauthorized Hacks 25 | . 2 . 7 . 10 . . . . 6 Terminals 14 | . 2 . 7 . 3 . . . . 2 Assimilate 2 | . . . . . 1 . . . . 1 Botnet 8 | . 2 . 3 . 2 . . . . 1 Skim 4 | . . . 4 . . . . . . . Fabricators 2 | . . . . . 2 . . . . . Recompile 2 | . . . . . 2 . . . . . Repair Stations . | . . . . . . . . . . . Recycling Units 9 | . . . . . 5 . . . . 4 Fedlink 9 | . . . . . 5 . . . . 4 Scanalyzers . | . . . . . . . . . . . Garrison Access . | . . . . . . . . . . . Data Cores Recovered . | . . . . . . . . . . . Used . | . . . . . . . . . . . Hacking Detections 33 | . 6 . 4 . 14 . . . . 9 Full Trace Events 2 | . . . 1 . 1 . . . . . Feedback Events . | . . . . . . . . . . . Feedback Blocked . | . . . . . . . . . . . Robot Schematics Acquired . | . . . . . . . . . . . Robots Built 2 | . . . . . 2 . . . . . Authchips . | . . . . . . . . . . . Time 56 | . . . . . 56 . . . . . Total Robot Build Rating 12 | . . . . . 12 . . . . . Part Schematics Acquired 2 | . . . . . 2 . . . . . Parts Built 4 | . . . . . 4 . . . . . Authchips 2 | . . . . . 2 . . . . . Time 70 | . . . . . 70 . . . . . Total Part Build Rating 24 | . . . . . 24 . . . . . Part Studies Acquired 1 | . . . . . . . . . . 1 Parts Repaired . | . . . . . . . . . . . Time . | . . . . . . . . . . . Parts Recycled . | . . . . . . . . . . . Recycled Matter . | . . . . . . . . . . . Retrieved Matter . | . . . . . . . . . . . Retrieved Components . | . . . . . . . . . . . Parts Scanalyzed 1 | . . . . . 1 . . . . . Part Schematics Acquired 1 | . . . . . 1 . . . . . Parts Damaged . | . . . . . . . . . . . Bothacking | -11 -10 -10 -7 -7 -5 -5 -5 -5 -4 -4 ------------ Run | Yrd Mat Sub Rec Scr Fac Upp Upp War Pro Fac Used RIF Installer . | . . . . . . . . . . . Robots Hacked . | . . . . . . . . . . . Non-combat . | . . . . . . . . . . . Combat . | . . . . . . . . . . . Robot Hacks Applied . | . . . . . . . . . . . Relay Couplers Released . | . . . . . . . . . . . Fabnet Peak Effective % . | . . . . . . . . . . . Robots Rewired 10 | . . . . . 5 . . 5 . . Allies Hacked 1 | . . . . . 1 . . . . . Hacks Repelled . | . . . . . . . . . . . Allies | -11 -10 -10 -7 -7 -5 -5 -5 -5 -4 -4 -------- Run | Yrd Mat Sub Rec Scr Fac Upp Upp War Pro Fac Total Allies 14 | . . . . . 8 . . 5 . 1 Largest Group 5 | . . . . . 3 . . 5 2 1 Highest-Rated Group 249 | . . . . . 102 . . 249 110 10 Highest-Rated Ally 64 | . . . . . 49 . . 64 64 10 Initial UFD Resources 60 | . . . . . 38 58 58 58 60 60 Total Orders 13 | . . . . . . . . 9 3 1 STAY 6 | . . . . . . . . 3 2 1 FOLLOW 2 | . . . . . . . . 1 1 . AID 5 | . . . . . . . . 5 . . Ally Attacks 120 | . . . . . 61 . . 55 4 . Total Damage 3889 | . . . . . 1893 . . 1981 15 . Kills 24 | . . . . . 12 . . 12 . . Allies Corrupted 1 | . . . . . 1 . . . . . Allies Melted 1 | . . . . . . . . 1 . . Intel | -11 -10 -10 -7 -7 -5 -5 -5 -5 -4 -4 ------- Run | Yrd Mat Sub Rec Scr Fac Upp Upp War Pro Fac Active Infowar (turns) 9529 | 24 832 1788 . 597 2050 570 827 740 692 1409 Sensors 6041 | . . . . . 1825 570 827 734 688 1397 Terrain 1358 | . . 1358 . . . . . . . . Structural 4420 | . . . . 597 673 567 487 541 434 1121 Seismic 1286 | 24 832 430 . . . . . . . . Cloaking 38 | . . . . . . . . 2 36 . Jamming 101 | . . . . . . . 101 . . . Robot Analysis Total 6 | . 1 . . 5 . . . . . . Derelict Logs Recovered 9 | . . 2 . 5 . 1 . . 1 . Drone Launches . | . . . . . . . . . . . Drone Recoveries . | . . . . . . . . . . . Exploration | -11 -10 -10 -7 -7 -5 -5 -5 -5 -4 -4 ------------- Run | Yrd Mat Sub Rec Scr Fac Upp Upp War Pro Fac Turns Passed 20299 | 103 1709 6465 828 3551 2815 570 827 1052 741 1638 Spaces Moved 11670 | 41 887 3047 515 2666 1549 489 485 606 513 872 Core 11 | 11 . . . . . . . . . . Treads 1857 | 30 470 1357 . . . . . . . . Legs . | . . . . . . . . . . . Wheels 9802 | . 417 1690 515 2666 1549 489 485 606 513 872 Hover . | . . . . . . . . . . . Flight . | . . . . . . . . . . . Fastest Speed 50 | 50 140 95 140 80 108 108 108 108 123 123 Average Speed 134 | 139 150 156 150 119 126 108 110 112 123 139 Slowest Speed 320 | 160 160 320 155 145 245 108 123 123 123 290 Overloaded Moves . | . . . . . . . . . . . Propulsion Burnouts . | . . . . . . . . . . . Robots Hopped . | . . . . . . . . . . . Potential Cave-ins . | . . . . . . . . . . . Cave-ins Triggered . | . . . . . . . . . . . Exploration Rate (%) 62 | 3 97 95 77 90 40 70 59 59 73 21 Regions Visited 10 Branch Regions 7 Pre-discovered Areas 9 | . . 2 . 6 1 . . . . . Known Exits Taken 5 | . . . . . 1 1 1 1 1 . Unknown Exits Taken 5 | 1 1 1 1 1 . . . . . . Scrap Searched 15 | . . 5 . 4 . 3 1 . 2 . Spaces Dug 102 | . . 7 2 . 35 12 1 . 7 38 Terrain Destroyed 372 | . 3 68 7 . 51 32 13 23 27 148 Melee 41 | . . . . . 35 2 1 . . 3 Projectile 118 | . . . 7 . 2 . . . 26 83 AOE 191 | . 3 68 . . 14 30 . 14 . 62 Terrain Rammed . | . . . . . . . . . . . Walls Destroyed . | . . . . . . . . . . . Machines Disabled . | . . . . . . . . . . . Actions | -11 -10 -10 -7 -7 -5 -5 -5 -5 -4 -4 --------- Run | Yrd Mat Sub Rec Scr Fac Upp Upp War Pro Fac Total 15315 | 61 1141 4597 558 3046 2098 527 714 880 561 1132 Wait 2406 | . 124 1328 33 303 192 18 191 105 8 104 Move 11661 | 41 886 3046 514 2665 1548 488 484 605 512 872 Hop . | . . . . . . . . . . . Pick Up 171 | 3 36 34 1 31 27 5 1 20 . 13 Fast Attach 53 | 6 4 5 . 4 21 . 1 5 . 7 Attach 52 | . 2 5 . 3 25 1 . 2 . 14 Detach 14 | . 2 2 . 3 7 . . . . . Swap 163 | . 5 27 1 2 39 4 13 32 13 27 Drop 162 | . 16 40 1 35 26 5 1 28 . 10 Fire 497 | 11 63 94 8 . 143 4 21 48 28 77 Melee 63 | . . 8 . . 43 2 2 1 . 7 Ram 1 | . . . . . . . . . . 1 Kick . | . . . . . . . . . . . Crush 3 | . 3 . . . . . . . . . Escape Stasis 8 | . . . . . 8 . . . . . Rewire 53 | . . . . . 19 . . 34 . . Trap . | . . . . . . . . . . . Miscellaneous 8 | . . 8 . . . . . . . . Route ------- -11/Scrapyard -10/Materials (discovered 5 exits: [*Mat x3] / *Min / *Sub) -10/Subcaves (discovered 3 exits: [*Mat x2] / *Rec) -7/Recycling (discovered 2 exits: *Fac / *Scr) -7/Scraptown (discovered 2 exits: *Fac x2) -5/Factory (discovered 4 exits: *Fac x2 / *Upp x2) -5/Upper Caves -5/Upper Caves (discovered 2 exits: Fac / *War) -5/Warlord -4/Proximity Caves -4/Factory (discovered 5 exits: *Res x3 / *Upp / Arm) History --------- Turn | Location | Event 2 | -11/Scrapyard | Discovered new exit (range 16) 104 | -11/Scrapyard | Entered Materials 314 | -10/Materials | Build established: Mutant 382 | -10/Materials | Discovered new exit (range 4) 670 | -10/Materials | Discovered new exit (range 7) 786 | -10/Materials | Identified exit to Mines 1213 | -10/Materials | Discovered new exit (range 16) 1805 | -10/Materials | Discovered new exit (range 7) 1813 | -10/Materials | Entered Subcaves 1814 | -10/Subcaves | Approached by a straggling Scientist 1870 | -10/Subcaves | Ambushed by Subdweller buried in earth 2244 | -10/Subcaves | A swath of the cavern ceiling suddenly collapsed 2444 | -10/Subcaves | Build established: Scavenger-Mutant 3393 | -10/Subcaves | Shifting Twisted Machinery released Piercing Trap 3515 | -10/Subcaves | Learned 2 Materials zone layouts 3516 | -10/Subcaves | Visited Clippyterm 3520 | -10/Subcaves | Learned Research machine intel 3911 | -10/Subcaves | Build established: Mutant 3983 | -10/Subcaves | Shifting Twisted Machinery released Scrap Shield 3993 | -10/Subcaves | Shifting Twisted Machinery released Battle Rifle 4085 | -10/Subcaves | Core integrity fell below 50% 4384 | -10/Subcaves | Learned location of Zion (-7) 4384 | -10/Subcaves | Met a Zionite searching for "candidates" 4734 | -10/Subcaves | Learned location of Storage (-7) 5036 | -10/Subcaves | Shifting Twisted Machinery released Sub. Laser 5039 | -10/Subcaves | Shifting Twisted Machinery released Sub. Laser 5360 | -10/Subcaves | Build established: Subdweller-Mutant 6186 | -10/Subcaves | Discovered new exit (range 16) 6258 | -10/Subcaves | Discovered new exit (range 14) 6328 | -10/Subcaves | Visited 4L-MR0's lab 6544 | -10/Subcaves | Discovered new exit (range 15) 6918 | -10/Subcaves | Build established: Scavenger-Mutant 7350 | -10/Subcaves | Build established: Mutant 8181 | -10/Subcaves | Found Rainbow Chip 8278 | -10/Subcaves | Entered Recycling 8931 | -7/Recycling | Discovered new exit (range 5) 9064 | -7/Recycling | Scanned before Scraplab entrance 9085 | -7/Recycling | Entered Scraplab 9103 | -7/Recycling | Discovered new exit (range 3) 9106 | -7/Recycling | Entered Scraptown 9199 | -7/Scraptown | Build established: Scavenger-Mutant 9265 | -7/Scraptown | Visited Awakened 9279 | -7/Scraptown | Visited Cave Peace 9309 | -7/Scraptown | Visited CPS Storage 9325 | -7/Scraptown | Visited Scrapoid Research Area 9346 | -7/Scraptown | Visited Red Mages 9505 | -7/Scraptown | Visited Comm Corps 9671 | -7/Scraptown | Scanned Subdweller tech in exchange for log data 9675 | -7/Scraptown | Learned Factory stockpile data 9676 | -7/Scraptown | Learned location of Armory (-4) 9679 | -7/Scraptown | Learned Research interactive machine intel 9900 | -7/Scraptown | Visited UFD Registry 9900 | -7/Scraptown | Registered with UFD as "Monobay" 9930 | -7/Scraptown | Visited LU-1G1's Boring Crew 9949 | -7/Scraptown | Visited Derelict Rescue Squad 9969 | -7/Scraptown | Visited Curators Association 10004 | -7/Scraptown | Visited Analyses Database 10035 | -7/Scraptown | Visited DA-N13 Charitable Foundation 10040 | -7/Scraptown | Found DCF Scrap (31 items) 10095 | -7/Scraptown | Visited Abandonware Association 10110 | -7/Scraptown | Learned abandonware demo "ERRANTS.EXE" 10148 | -7/Scraptown | Visited Cartography Club 10283 | -7/Scraptown | Visited Observation Area 10395 | -7/Scraptown | Delivered Scrap Shield to a Scientist 10486 | -7/Scraptown | Visited Junk Repository 10521 | -7/Scraptown | Build established: Mutant 10691 | -7/Scraptown | Found Surveybot 17 Chip 10721 | -7/Scraptown | Found Deep Structural Scanner 10764 | -7/Scraptown | Learned location of Lower Caves (-6) 10764 | -7/Scraptown | Learned location of Upper Caves (-5) 10764 | -7/Scraptown | Learned location of Proximity Caves (-6) 10764 | -7/Scraptown | Learned 8 Materials zone layouts 10764 | -7/Scraptown | Learned 20 Factory zone layouts 10764 | -7/Scraptown | Learned 8 Research zone layouts 10764 | -7/Scraptown | Learned 8 Lower Caves zone layouts 10764 | -7/Scraptown | Learned 8 Upper Caves zone layouts 10764 | -7/Scraptown | Learned 24 Upper Caves zone layouts 10764 | -7/Scraptown | Learned 4 Armory zone layouts 10764 | -7/Scraptown | Learned location of 1 exit from Factory 10764 | -7/Scraptown | Learned location of 1 exit from Research 10764 | -7/Scraptown | Learned location of 1 exit from Lower Caves 10823 | -7/Scraptown | Discovered new exit (range 10) 11127 | -7/Scraptown | Discovered new exit (range 14) 11275 | -7/Scraptown | Found DRS Beacon 12583 | -7/Scraptown | Met Optimus 12583 | -7/Scraptown | Accepted into 0bPrime 12657 | -7/Scraptown | Entered Factory 12657 | -5/Factory | Evolved 10 slots: Power x1, Propulsion x3, Utility x4, Weapon x2 12658 | -5/Factory | Identified exit to Upper Caves 12659 | -5/Factory | Identified exit to Factory 12957 | -5/Factory | Build established: Derelict-Gunner 13035 | -5/Factory | Found Prototype Launcher 13077 | -5/Factory | Identified Smartbomb Launcher 14370 | -5/Factory | Garrison activated, responded to threat 14442 | -5/Factory | Loaded intel: 8 recycling unit locations 14464 | -5/Factory | Learned location of Protoforge (-2) 14609 | -5/Factory | Lost 4 parts (1n3w) 14622 | -5/Factory | Discovered exit to Factory (range 10) 14780 | -5/Factory | Lost 4 parts (2n2w) 14880 | -5/Factory | Fabricated X-72 Disruptor (x2) 14905 | -5/Factory | Lost 4 parts (2p1u1w) 15012 | -5/Factory | Build established: Hacker-Mutant 15149 | -5/Factory | Lost 3 allies 15263 | -5/Factory | Fabricated Hyp. Coil Gun (x2) 15303 | -5/Factory | Fabricated Hyp. Coil Gun (x2) 15459 | -5/Factory | System corruption reached 10% 15472 | -5/Factory | Entered Upper Caves 15473 | -5/Upper Caves | Identified exit to Upper Caves 15474 | -5/Upper Caves | UFD Scientist delivered a prototype 15476 | -5/Upper Caves | Found Prototype Protection 15478 | -5/Upper Caves | Encountered a Warlord checkpoint 15778 | -5/Upper Caves | Build established: Hacker-Assassin 16042 | -5/Upper Caves | Entered another Upper Caves area 16043 | -5/Upper Caves | Identified exit to Warlord 16488 | -5/Upper Caves | Encountered a Warlord checkpoint 16550 | -5/Upper Caves | Build established: Hacker-Skirmisher 16863 | -5/Upper Caves | Found Alien Artifact 16869 | -5/Upper Caves | Entered Warlord 16870 | -5/Warlord | Identified exit to Proximity Caves 16906 | -5/Warlord | System corruption cleaned by Quarantine Array 16993 | -5/Warlord | Found Prototype Special Weapon 16993 | -5/Warlord | Identified RU-N14's Throwing Claymores v3 16999 | -5/Warlord | Found RU-N14's Throwing Claymores v3 17001 | -5/Warlord | Found RU-N14's Throwing Claymores v3 17003 | -5/Warlord | Found RU-N14's Throwing Claymores v3 17005 | -5/Warlord | Found RU-N14's Throwing Claymores v3 17104 | -5/Warlord | Learned Quarantine security intel 17104 | -5/Warlord | Learned Armory recycling unit intel 17104 | -5/Warlord | Learned Research terminal intel 17104 | -5/Warlord | Learned Research scanalyzer intel 17104 | -5/Warlord | Learned 4 Armory zone layouts 17104 | -5/Warlord | Learned 4 Research zone layouts 17104 | -5/Warlord | Learned 4 Command zone layouts 17104 | -5/Warlord | Learned Armory trap positions 17221 | -5/Warlord | Visited the Vortex Lab 17221 | -5/Warlord | Warlord's base attacked by MAIN.C 17231 | -5/Warlord | Found Prototype Energy Gun 17233 | -5/Warlord | Found Prototype Energy Gun 17235 | -5/Warlord | Found Prototype Piercing Weapon 17237 | -5/Warlord | Found Prototype Piercing Weapon 17305 | -5/Warlord | Identified Vortex Lance (x2) 17314 | -5/Warlord | Found Prototype Reactor 17317 | -5/Warlord | Found Prototype Device 17317 | -5/Warlord | Identified Exp. Cloaking Device 17326 | -5/Warlord | Found Prototype Device 17326 | -5/Warlord | Identified Thermal Barrier 17330 | -5/Warlord | Found Prototype Processor 17330 | -5/Warlord | Identified Exp. Armor Integrity Analyzer 17566 | -5/Warlord | Spotted Striker 17571 | -5/Warlord | Warlord forces counterattacked 17571 | -5/Warlord | P-70 Sage assimilated allied GB-OJD(g) 17579 | -5/Warlord | Allies destroyed Striker 17635 | -5/Warlord | Spotted Striker 17637 | -5/Warlord | Spotted Striker 17640 | -5/Warlord | Destroyed Striker 17661 | -5/Warlord | Spotted Executioner 17694 | -5/Warlord | Destroyed B8-PB4(g) 17721 | -5/Warlord | Found Prototype Processor 17721 | -5/Warlord | Identified Exp. Targeting Computer 17725 | -5/Warlord | Lost 10 allies 17727 | -5/Warlord | Spotted Striker 17727 | -5/Warlord | Spotted Executioner 17769 | -5/Warlord | Lost 5 allies 17821 | -5/Warlord | Spotted Executioner 17821 | -5/Warlord | Spotted Striker 17821 | -5/Warlord | Spotted Striker 17825 | -5/Warlord | Destroyed Striker 17844 | -5/Warlord | Allies destroyed Striker 17853 | -5/Warlord | Identified Vortex Rail (x2) 17858 | -5/Warlord | Found Prototype Processor 17873 | -5/Warlord | Lost 12 allies 17896 | -5/Warlord | Warlord base infiltrated, sounded retreat 17921 | -5/Warlord | Entered Proximity Caves 17921 | -4/Proximity Caves | Accompanied by 2 allies 17924 | -4/Proximity Caves | Spotter reported a threat 17924 | -4/Proximity Caves | Spotter reported a threat 18073 | -4/Proximity Caves | Learned Research emergency access door positions 18277 | -4/Proximity Caves | Build established: Scavenger-Skirmisher 18541 | -4/Proximity Caves | Attracted the attention of an 0b10 checkpoint 18638 | -4/Proximity Caves | Discovered exit to Factory (range 9) 18662 | -4/Proximity Caves | Attached Rainbow Chip, gained temporary slots: Power, Propulsion, Utility, Weapon 18662 | -4/Proximity Caves | Entered Factory 18662 | -4/Factory | Evolved 2 slots: Utility x2 18663 | -4/Factory | Identified exit to Research 18663 | -4/Factory | Identified exit to Upper Caves 18663 | -4/Factory | Identified exit to Armory 18663 | -4/Factory | Identified Enh. Scrap Shield 18912 | -4/Factory | Search patrols dispatched 19133 | -4/Factory | Found Prototype Processor 19133 | -4/Factory | Identified Exp. Terrain Scan Processor 19162 | -4/Factory | Found Exp. Terrain Scan Processor 19305 | -4/Factory | Loaded intel: 8 recycling unit locations 19482 | -4/Factory | Spotted B-86 Titan 19495 | -4/Factory | Destroyed B-86 Titan 19759 | -4/Factory | Central database locked down 19853 | -4/Factory | Destroyed 8 combat bots 19912 | -4/Factory | First assault squad dispatched 20282 | -4/Factory | Identified Vortex Chain Reactor 20287 | -4/Factory | Identified Dimensional Node Initializer 20287 | -4/Factory | Initialized slip node 20289 | -4/Factory | Core integrity fell below 50% 20291 | -4/Factory | Core integrity fell below 20% 20300 | -4/Factory | Destroyed by G-67 Veteran with Field Laser Last Messages --------------- 20288_ Vortex Chain Reactor destroyed. 20288_ G-73 Enforcer destroyed. 20288_ G-67 Veteran destroyed. 20288_ G-73 Enforcer destroyed. 20288_ B-60 Warrior destroyed. 20288_ G-67 Veteran destroyed. 20288_ I-47 Archangel destroyed. 20288_ L-61 Swordsman destroyed. 20288_ G-73 Enforcer destroyed. 20289_ System corrupted: Heat flow error (+131). 20289_ Slug penetrates B-60 Warrior. 20291_ The unstable cave ceiling collapses. 20293_ Knocked back. 20294_ Critical hit (Burn: +50). 20296_ The unstable cave ceiling collapses. 20297_ Knocked back. 20298_ The unstable cave ceiling collapses. 20300_ Railgun destroyed. 20300_ Field Laser destroyed. 20300_ Rainbow Chip destroyed. Map ----- +----------------------------------------------------+ | ######################################## | | ################ """ ################## | | # ## """ ################## | | # """ """ """ ## """ ################## | | # "Y """ """ #" + #### | | # """ """ """ "# # ######"#### #### | | + ## # ##### ! ## #### | | # ######### ##### ## #### | | #####+##+#####"####### ##### # ### | | ##### #######T ##### + " ### | | ############## #]= # ### | | ##### ## #== ##+#### | | ??????????#### #; # # ## | | ??????????#### ## #! + ## | | ??????????#### """"" ## # # ## | | ??????????#### """"" ## t##### ## | | ?????????##### """ ## ###### < ## | | ############## ## ###### /## | | ############## """"" ## %###### ## | | ############## """"" ## ###### ! ## | | ############## """ ## ######/ ## | | ###### # ## ##########"# | | ###### ####;##### ######### | | ###### # ^ #; ######## | | ###### # ####### | | ###### # ! @ # #?##### | | ! # / + " g b # #?????? | | # # #?????? | | """ # # g[% g #?????? | | """ [# # * % ## ## #?????? | | """ # ### #### # # ####???? | | # ### #### #???? | | ################ ## % #???? | | ################ ## ##% #???? | | ################ ?# ##% ! #???? | | ############### ?# ## "???? | | #???????????????????# ## "% ; ??? | | #???????????????????+ #####+#### ?? | | #???????????????????########## ? ???? ? | | ######?????????????????? ? ?????? | | ######?????????????????? ? ????? | | ######?????????????????? """ ]?? ????? | | ######?????????? ? ???"" ??? #???? | | ?????????? """ ] ####### | | ######??????????#### ####### | | ?????????? # "" ####### | | ???????????? + G" ####### | | """???????????? ##### " # ! # | | ""????????????? ##### %! # # | | ""?????????????????#### ! + # | +----------------------------------------------------+ Best States ------------- Heat Dissipation 105 Energy Generation 37 Energy Capacity 550 Matter Stores 300 Matter Capacity 300 Sight Range 16 Robot Scan Range 16 Terrain Scan Range 16 Terrain Scan Density 10 Jamming Range 14 Cloak Strength 4 Armor Coverage 800 Weapon Cycling 15 Evasion (%) 44 Targeting Accuracy 12 Armor Integrity Analysis 50 Recoil Reduction 2 Offensive Hacking 26 Defensive Hacking 10 Authchip Count 2 Item Schematics ----------------- Hyp. Coil Gun | -5/Factory | Scanalyzed KE Penetrator | -5/Factory | Hacked Robot Schematics ------------------ None Fabricated ------------ X-72 Disruptor | x2 | -5/Factory | Preloaded Hyp. Coil Gun | x2 | -5/Factory | Authchip Hyp. Coil Gun | x2 | -5/Factory | Authchip Repaired ---------- Nothing Studied --------- Adv. Plasma Cannon | -4/Factory | Hacked Alien Tech Used ----------------- Dimensional Node Initializer Achievements -------------- None Challenges ------------ None Game ------ Seed DataSegregatorChaingun Manual? 0 Play Time 02:39:02 Cumulative 685.4 hours Start 2026.04.01 @ 19:58:54 End 2026.04.02 @ 14:01:22 Sessions 7 Manual Loads 0 Difficulty Rogue Special Mode None Game No. 373 Rogue 373 Adventurer 0 Explorer 0 Win Type - Total 30 Types 15/1/6/2/1/1/1/2/1/0 Lore% 92 Gallery% 86 Achievement% 78 Wizard Run 0 Options --------- Layout 0 ASCII 0 Keyboard 0 Movement Numpad Keybinds 0 Fullscreen 2 Font 24/Smallcaps Map View 76x50 Zoom Use 0% Tactical HUD 1 Map Filters NONE Filters NONE Steam 1 RUN: 90a758e9-e95d-40db-8a61-5324538c62a4